Cogmind - Beta 10.2 @@@ ROGUE MODE // 2021.06.17 @ 16:50:16 Player: puncake Result: Smashed by cave-in Performance ------------- Evolutions (1) 500 Regions Visited (2) 400 Robots Destroyed (46) 230 Value Destroyed (1088) 1088 Prototype IDs (0) 0 Alien Tech Used (0) 0 Bonus (39) 39 TOTAL SCORE: 2257 Bonus ------- High Alert Combat Kills 39 Cogmind --------- Core Integrity 0/400 Matter 172/300 Energy 124/250 System Corruption 5% Temperature Cool (147) Movement Core (300) Ox5 Location -9/Materials Parts ------- > --- POWER (1) -------- Ion Engine > --- PROPULSION (4) --- (None) > --- UTILITY (2) ------ Small Storage Unit > --- WEAPON (2) ------- Small Laser Heavy Particle Cannon > --- INVENTORY (6) ---- Cooling System Sensor Array Heavy Particle Cannon Peak State ------------ > --- POWER ------------ Improved Ion Engine > --- PROPULSION ------- Light Treads Light Treads Aluminum Leg Improved Aluminum Leg > --- UTILITY ---------- Small Storage Unit Advanced Signal Interpreter > --- WEAPON ----------- Beam Rifle Heavy Particle Cannon > --- INVENTORY -------- Ion Engine Cooling System Sensor Array Heavy Particle Cannon Heavy Assault Rifle Grenade Launcher [Rating: 17] Favorites ----------- Power Ion Engine Engine Ion Engine Propulsion Aluminum Leg Treads Light Treads Leg Aluminum Leg Utility Small Storage Unit Device Heat Sink Storage Small Storage Unit Processor Advanced Signal Interpreter Weapon Assault Rifle Energy Gun Beam Rifle Energy Cannon Heavy Particle Cannon Ballistic Gun Assault Rifle Launcher Grenade Launcher Build | -11 -10 -9 ------- Run | Scr Mat Mat Slots Evolved 2 | . . 2 Power . | . . . Propulsion 2 | . . 2 Utility . | . . . Weapon . | . . . Parts Attached 33 | 6 4 23 Power 6 | 1 1 4 Engine 6 | 1 1 4 Core . | . . . Reactor . | . . . Propulsion 10 | 2 1 7 Treads 3 | . 1 2 Leg 7 | 2 . 5 Wheel . | . . . Hover . | . . . Flight . | . . . Utility 3 | 1 1 1 Device 1 | . 1 . Storage 1 | 1 . . Processor 1 | . . 1 Hackware . | . . . Protection . | . . . Artifact . | . . . Weapon 14 | 2 1 11 Energy Gun 2 | . . 2 Energy Cannon 5 | . 1 4 Ballistic Gun 5 | 2 . 3 Ballistic Cannon . | . . . Launcher 2 | . . 2 Special Weapon . | . . . Impact Weapon . | . . . Slashing Weapon . | . . . Piercing Weapon . | . . . Special Melee Weapon . | . . . Unidentified Prototypes . | . . . Parts Lost 12 | . 1 11 Power 1 | . . 1 Propulsion 7 | . 1 6 Utility 1 | . . 1 Weapon 3 | . . 3 Highest Loss Streak 9 | . 1 9 Average Slot Usage (%) 98 | . 97 98 Engine 11 | . 14 11 Treads 15 | . 5 19 Leg 22 | . 21 22 Device 3 | . 12 . Storage 11 | . 14 11 Processor 7 | . . 10 Energy Gun 1 | . . 2 Energy Cannon 8 | . 4 9 Ballistic Gun 12 | . 23 8 Naked Turns . | . . . Heaviest Build 20 | 13 15 20 Greatest Support 30 | 20 20 30 Greatest Overweight (x) 1 | . 1 1 Average Overweight (x) . | . . . Largest Inventory Capacity 6 | 6 6 6 Average Capacity 5 | 5 6 6 Most Carried 6 | 6 6 6 Average Carried 5 | 3 5 5 Final Capacity 6 | 6 6 6 Final Carried 6 | 6 6 3 Class Distribution -------------------- 63% | Mutant 36% | Scavenger-Mutant Dominant Class ---------------- Mutant | -10/Materials Scavenger-Mutant | -9/Materials Resources | -11 -10 -9 ----------- Run | Scr Mat Mat Matter Collected 775 | 236 121 418 Remotely . | . . . Salvage Created 1342 | . 121 1221 Parts 102 | . 3 99 Haulers Intercepted 2 | . . 2 Recyclers Shooed 1 | . . 1 Parts Field Recycled . | . . . Retrieved Matter . | . . . Parts Self-Destructed . | . . . Prevented . | . . . Kills | -11 -10 -9 ------- Run | Scr Mat Mat Combat Hostiles Destroyed 34 | . 3 31 Guns 14 | . 3 11 Cannons 13 | . . 13 AOE 7 | . . 7 Classes Destroyed 8 | . 1 7 Worker 1 | . . 1 Builder 6 | . . 6 Hauler 2 | . . 2 Recycler 1 | . . 1 Watcher 2 | . . 2 Swarmer 11 | . . 11 Grunt 16 | . 3 13 Sentry 7 | . . 7 Best Kill Streak 12 | . 2 12 Combat Bots Only 8 | . 2 8 Max Kills in Single Turn 3 | . 1 3 Gunslinging . | . . . Exploded 3 | . . 3 Melee . | . . . Uniques/NPCs Destroyed . | . . . Combat | -11 -10 -9 -------- Run | Scr Mat Mat Damage Taken 2339 | . 385 1954 Core 490 | . 75 415 Absorbed by Shields . | . . . Core Remaining (%) 85 | 100 70 . Volleys Fired 114 | . 26 88 Largest 2 | . 2 2 Hottest 131 | . 40 131 Shots Fired 217 | . 52 165 Gun 141 | . 52 89 Cannon 71 | . . 71 Launcher 5 | . . 5 Special . | . . . Kinetic 119 | . 52 67 Thermal 93 | . . 93 Explosive 5 | . . 5 Electromagnetic . | . . . Robot Hit Streak 13 | . 8 13 Robot Miss Streak 6 | . 3 6 Penetration Max . | . . . Secondary Targets . | . . . Shots Hit Robots 122 | . 35 87 Core Hits 64 | . 9 55 Critical Hits 3 | . 1 2 Critical Kills 2 | . 1 1 Critical Parts Destroyed 1 | . . 1 Melee Attacks . | . . . Impact . | . . . Slashing . | . . . Piercing . | . . . Sneak Attacks . | . . . Combat Hostiles . | . . . Follow-up Attacks . | . . . Damage Inflicted 2802 | . 439 2363 Guns 1045 | . 439 606 Cannons 1000 | . . 1000 Explosions 757 | . . 757 Melee . | . . . Ramming . | . . . Kinetic 850 | . 439 411 Thermal 1195 | . . 1195 Explosive 757 | . . 757 Electromagnetic . | . . . Impact . | . . . Slashing . | . . . Piercing . | . . . Highest Corruption 2 | . . 2 Average Corruption 2 | . . 2 Corruption Purged . | . . . Effects 6 | . . 6 Message Errors 1 | . . 1 Heat Flow Errors 2 | . . 2 Energy Discharges 1 | . . 1 Data Loss (minor) 1 | . . 1 Targeting Errors 1 | . . 1 Overload Shots . | . . . Overflow Damage 57 | . . 57 Projectiles 41 | . . 41 Explosions 16 | . . 16 Melee . | . . . Knockbacks . | . . . Impact . | . . . Kinetic . | . . . Secondary . | . . . Self-Inflicted Damage 131 | . . 131 Shots 4 | . . 4 Rammed . | . . . Targets Rammed . | . . . Kicked . | . . . Crushed . | . . . Highest Temperature 501 | . . 501 Average Temperature 125 | . . 125 Received Heat Transfer 657 | . 213 444 Effects 7 | . . 7 Shutdowns 1 | . . 1 Interference 2 | . . 2 Matter Decay 1 | . . 1 Damage (major) 3 | . . 3 Siege Activations . | . . . Robots Corrupted . | . . . Combat Hostiles . | . . . Parts Fried . | . . . Impact Corruptions . | . . . Robots Melted . | . . . Combat Hostiles . | . . . Parts Melted . | . . . Heat Transferred 1974 | . . 1974 Parts Sabotaged . | . . . Parts Stolen . | . . . Parts Stripped . | . . . Power Chain Reactions . | . . . Missiles Intercepted . | . . . Alert | -11 -10 -9 ------- Run | Scr Mat Mat Peak Influence 517 | . 105 517 Initial 44 | . . 44 Average 192 | . 52 264 Maximum Alert Level 2 | . . 2 Low Security (%) 48 | 100 100 23 Level 1 44 | . . 65 Level 2 7 | . . 10 Level 3 . | . . . Level 4 . | . . . Level 5 . | . . . High Security . | . . . Max Security . | . . . Squads Dispatched 7 | . . 7 Investigation 1 | . . 1 Extermination . | . . . Reinforcement 6 | . . 6 Assault . | . . . Garrison . | . . . Intercept . | . . . Construction Impeded 1 | . . 1 Haulers Reinforced . | . . . Stealth | -11 -10 -9 --------- Run | Scr Mat Mat Distress Signals 3 | . . 3 Communications Jammed . | . . . Distress Signals . | . . . Times Spotted 53 | . 6 47 Peak Tracking Total 10 | . 4 10 Tactical Retreats 6 | . 2 4 Traps | -11 -10 -9 ------- Run | Scr Mat Mat Traps Triggered 2 | . . 2 Indirectly . | . . . Trap Hack Attempts . | . . . Triggered . | . . . Disarmed . | . . . Reprogrammed . | . . . Reused . | . . . Traps Extracted . | . . . Installed . | . . . Triggered . | . . . Machines | -11 -10 -9 ---------- Run | Scr Mat Mat Machines Disabled 2 | . . 2 Max in Single Turn 1 | . . 1 Machines Sabotaged . | . . . Garrisons Compromised . | . . . Overloaded Fab Kills . | . . . Fab Network Shutdowns . | . . . Hacking | -11 -10 -9 --------- Run | Scr Mat Mat Machines Accessed 4 | . 2 2 Terminals 4 | . 2 2 Fabricators . | . . . Repair Stations . | . . . Recycling Units . | . . . Scanalyzers . | . . . Garrison Access . | . . . Total Hacks 9 | . 5 4 Successful 4 | . 2 2 Failed 5 | . 3 2 Catastrophic 1 | . . 1 Database Lockouts . | . . . Manual 4 | . . 4 Terminals 9 | . 5 4 Fabricators . | . . . Repair Stations . | . . . Recycling Units . | . . . Scanalyzers . | . . . Garrison Access . | . . . Terminal Hacks 4 | . 2 2 Branch Access Points 1 | . 1 . Alert Level 1 | . 1 . Unreport Threat 2 | . . 2 Fabricator Hacks . | . . . Repair Station Hacks . | . . . Recycling Unit Hacks . | . . . Scanalyzer . | . . . Garrison Access Hacks . | . . . Unauthorized Hacks . | . . . Terminals . | . . . Fabricators . | . . . Repair Stations . | . . . Recycling Units . | . . . Scanalyzers . | . . . Garrison Access . | . . . Data Cores Recovered . | . . . Used . | . . . Hacking Detections 2 | . . 2 Full Trace Events . | . . . Feedback Events . | . . . Feedback Blocked . | . . . Robot Schematics Acquired . | . . . Robots Built . | . . . Matter . | . . . Time . | . . . Total Robot Build Rating . | . . . Part Schematics Acquired . | . . . Parts Built . | . . . Matter . | . . . Time . | . . . Total Part Build Rating . | . . . Parts Repaired . | . . . Time . | . . . Parts Recycled . | . . . Recycled Matter . | . . . Retrieved Matter . | . . . Retrieved Components . | . . . Parts Scanalyzed . | . . . Part Schematics Acquired . | . . . Parts Damaged . | . . . Bothacking | -11 -10 -9 ------------ Run | Scr Mat Mat Used RIF Installer . | . . . Robots Hacked . | . . . Non-combat . | . . . Combat . | . . . Robot Hacks Applied . | . . . Relay Couplers Released . | . . . Robots Rewired . | . . . Allies Hacked . | . . . Hacks Repelled . | . . . Allies | -11 -10 -9 -------- Run | Scr Mat Mat Total Allies . | . . . Largest Group . | . . . Highest-Rated Group . | . . . Highest-Rated Ally . | . . . Total Orders . | . . . Ally Attacks . | . . . Total Damage . | . . . Kills . | . . . Allies Corrupted . | . . . Allies Melted . | . . . Intel | -11 -10 -9 ------- Run | Scr Mat Mat Robot Analysis Total . | . . . Derelict Logs Recovered . | . . . Drone Launches . | . . . Drone Recoveries . | . . . Exploration | -11 -10 -9 ------------- Run | Scr Mat Mat Turns Passed 1288 | 64 358 866 Spaces Moved 651 | 44 182 425 Core 9 | 9 . . Treads 2 | . . 2 Legs 640 | 35 182 423 Wheels . | . . . Hover . | . . . Flight . | . . . Fastest Speed 50 | 50 120 120 Average Speed 123 | 105 135 120 Slowest Speed 160 | 120 150 160 Overloaded Moves . | . . . Propulsion Burnouts . | . . . Robots Hopped . | . . . Cave-ins Triggered 1 | . . 1 Exploration Rate (%) 27 | 5 32 45 Regions Visited 2 Branch Regions . Pre-discovered Areas . | . . . Known Exits Taken . | . . . Unknown Exits Taken 2 | 1 1 . Scrap Searched . | . . . Spaces Dug . | . . . Terrain Destroyed 67 | . . 67 Melee . | . . . Projectile 26 | . . 26 AOE 41 | . . 41 Terrain Rammed . | . . . Walls Destroyed . | . . . Machines Disabled . | . . . Actions | -11 -10 -9 --------- Run | Scr Mat Mat Total 927 | 61 242 624 Wait 93 | . 26 67 Move 649 | 43 181 425 Hop . | . . . Pick Up 21 | 12 2 7 Fast Attach 6 | . 2 4 Attach 13 | 6 1 6 Detach . | . . . Swap 14 | . 1 13 Drop 17 | . 3 14 Fire 114 | . 26 88 Melee . | . . . Ram . | . . . Kick . | . . . Crush . | . . . Escape Stasis . | . . . Rewire . | . . . Trap . | . . . Miscellaneous . | . . . Route ------- -11/Scrapyard -10/Materials (discovered 3 exits: *Mat / Min x2) -9/Materials (discovered 1 exit: *Min) History --------- Turn | Location | Event 6 | -11/Scrapyard | Discovered new exit (range 15) 65 | -11/Scrapyard | Entered Materials 130 | -10/Materials | Identified exit to Mines 302 | -10/Materials | Build established: Mutant 365 | -10/Materials | Discovered new exit (range 12) 423 | -10/Materials | Entered another Materials area 423 | -9/Materials | Evolved 2 slots: Propulsion x2 999 | -9/Materials | Discovered new exit (range 16) 1025 | -9/Materials | Identified exit to Mines 1118 | -9/Materials | Build established: Scavenger-Mutant 1174 | -9/Materials | Destroyed 8 combat bots 1275 | -9/Materials | Core integrity fell below 50% 1290 | -9/Materials | Crushed by falling debris 1290 | -9/Materials | Smashed by cave-in Last Messages --------------- 01275_ Aluminum Leg destroyed. 01276_ Destroyed Sml. Laser. 01276_ K-01 Serf destroyed. 01276_ Aluminum Leg destroyed. 01276_ Destroyed Aluminum Leg. 01276_ U-05 Engineer destroyed. 01278_ Lgt. Assault Rifle destroyed. 01278_ G-34 Mercenary destroyed. 01279_ Acquired 10 matter. 01282_ Grenade Launcher destroyed. 01283_ Aluminum Leg destroyed. 01283_ Acquired Sml. Laser. 01284_ R-06 Scavenger collects Terrain Scan Processor. 01286_ Y-45 Defender destroyed. 01288_ R-06 Scavenger collects Terrain Scanner. 01289_ Y-45 Defender destroyed. 01290_ The unstable cave ceiling collapses. 01290_ Crushed by falling debris. 01290_ Adv. Signal Interpreter destroyed. 01290_ System corrupted by crushing effect (+3). Map ----- +----------------------------------------------------+ | ????# % # #?######### ????## | | ????####+### ### ##+####### | | ###### * ####### | | [ > ! #?????? | | ###### * *%= #?????? | | ?????## ## ###### ##+####### #?????? | | ??#####!## #????# "!"!" #????????#######?????? | | #### ##+ # #????#""!"!""#????????????????????? | | # % *% [ # ##???#########????????????????????? | | *%=! # ###########???????????????????????? | | # %%#[ #???????????????????????? | | # ==#% #???????????????????????? | | # ***% % T #???????????????????????? | | #"S **!*% """" #???????????????????????? | | #""" **%=#= """" #???????????????????????? | | # "" [=[# """" #???????????????????????? | | # !# #???????????????????????? | | ########## #???????????????????????? | | ?????????# """" """" #?######????????????????? | | ?????????# """" """" #? #????????????????? | | ?????????#[ """" """" # #????????????????? | | ?????????# # " " #????????????????? | | ?????????# [ + "R" #????????????????? | | ?????????# ###### # """ #????????????????? | | ?????????# ???# # #????????????????? | | ?????????# ??## *%@ #####????????????????? | | ?????????? ? ??# ==%|##! #????????????????? | | ?????????? ?????# *%!=%=%! #????????????????? | | ?????????? ???????# [=%*%##r #????????????????? | | ????????????????????# *!!=% #? ##????????????????? | | ????????????????????# # #??#?????????????????? | | ????????????????????#########????????????????????? | | ?????????????????????????????????????????????????? | | ?????????????????????????????????????????????????? | | ?????????????????????????????????????????????????? | | ?????????????????????????????????????????????????? | | ?????????????????????????????????????????????????? | | ?????????????????????????????????????????????????? | | ?????????????????????????????????????????????????? | | ?????????????????????????????????????????????????? | | ?????????????????????????????????????????????????? | | ?????????????????????????????????????????????????? | | ?????????????????????????????????????????????????? | | ?????????????????????????????????????????????????? | | ?????????????????????????????????????????????????? | | ?????????????????????????????????????????????????? | | ?????????????????????????????????????????????????? | | ?????????????????????????????????????????????????? | | ?????????????????????????????????????????????????? | | ?????????????????????????????????????????????????? | +----------------------------------------------------+ Best States ------------- Heat Dissipation 38 Energy Generation 12 Energy Capacity 265 Matter Stores 300 Matter Capacity 300 Sight Range 16 Terrain Scan Density 10 Evasion (%) 40 Recoil Reduction 1 Item Schematics ----------------- None Robot Schematics ------------------ None Fabricated ------------ Nothing Alien Tech Used ----------------- None Achievements -------------- None Challenges ------------ None Game ------ Seed ReactionAntimatterSystem Manual? 0 Play Time 00:13:52 Cumulative 17.6 hours Start 2021.06.17 @ 16:38:49 End 2021.06.17 @ 16:50:16 Sessions 1 Manual Loads 0 Difficulty Rogue Special Mode None Game No. 20 Rogue 20 Adventurer 0 Explorer 0 Win Type - Total 0 Types 0/0/0/0/0/0/0/0/0 Lore% 16 Gallery% 36 Achievement% 23 Wizard Run 0 Options --------- ASCII 1 Keyboard 0 Movement Mouse Keybinds 0 Fullscreen 2 Font 18/X11 Map View 76x50 Tactical HUD 1 Map Filters NONE Filters NONE Steam 1 RUN: 4bd5a89b-5230-4559-98a1-23b107f7dc75